fUST/lending_fUST_20241014
["ID","MTS","AMOUNT","RATE_DAILY","PERIOD"]
[340250297,1728918654706,-500.0,0.00041369,30]
[340250298,1728918654716,-500.0,0.00041369,30]
[340250299,1728918654725,-684.06,0.00041369,30]
[340250300,1728918654734,-500.0,0.00041369,30]
[340250301,1728918654743,-205.660718,0.00041369,120]
[340250302,1728918654753,-205.660718,0.00041369,120]
[340250303,1728918654762,-546.22739256,0.00041369,30]
[340250304,1728918654771,-502.98971341,0.00041373,7]
[340250305,1728918654781,-602.35698918,0.00041373,7]
[340250306,1728918654790,-500.54868513,0.00041373,10]
[340250307,1728918654800,-500.0,0.00041373,10]
[340250308,1728918654809,-500.0,0.00041373,10]
[340250309,1728918654818,-500.0,0.00041373,10]
[340250310,1728918654827,-500.0,0.00041373,10]
[340250311,1728918654836,-556.79355992,0.00041373,7]
[340250312,1728918654846,-161.60042158,0.00041373,7]
[340250313,1728918654856,-500.0,0.00041373,10]
[340250314,1728918654866,-502.75837109,0.00041373,7]
[340250315,1728918654876,-549.25691751,0.00041373,10]
[340250316,1728918654886,-500.0,0.00041373,10]
[340250317,1728918654896,-500.0,0.00041373,10]
[340250318,1728918654905,-151.0,0.00041373,120]
[340250319,1728918654915,-3733.29462466,0.00041386,28]
[340250320,1728918654928,-150.112233,0.000414,6]
[340250321,1728918654939,-159.0,0.000414,7]
[340250322,1728918654949,-150.112233,0.000415,6]
[340250323,1728918654958,-150.112233,0.000415,10]
[340250324,1728918654968,-684.951,0.00041515,2]
[340250325,1728918654978,-150.112233,0.000416,7]
[340250326,1728918654988,-151.0,0.00041633,120]
[340250327,1728918654997,-258.13818,0.00041633,120]
[340250328,1728918655007,-233.42858,0.00041633,120]
[340250329,1728918655016,-233.42858,0.00041633,120]
[340250330,1728918655025,-151.0,0.00041633,120]
[340250331,1728918655034,-225.639466,0.00041633,120]
[340250332,1728918655043,-225.639466,0.00041633,120]
[340250333,1728918655052,-757.105824,0.00041633,120]
[340250334,1728918655064,-757.105824,0.00041633,120]
[340250335,1728918655073,-151.0,0.00041633,120]
[340250336,1728918655083,-151.0,0.00041633,120]
[340250337,1728918655092,-151.0,0.00041633,120]
[340250338,1728918655102,-192.07819,0.00041633,120]
[340250339,1728918655112,-192.07819,0.00041633,120]
[340250340,1728918655121,-478.73481286,0.00041643,30]
[340250341,1728918655130,-151.0,0.00041643,120]
[340250342,1728918655141,-151.0,0.00041643,120]
[340250343,1728918655151,-500.0,0.00041643,30]
[340250344,1728918655160,-337.06167496,0.00041643,30]
[340250345,1728918655169,-500.0,0.00041643,30]
[340250346,1728918655180,-500.0,0.00041643,30]
[340250347,1728918655190,-500.0,0.00041643,30]
[340250348,1728918655200,-604.97,0.00041643,30]
[340250349,1728918655209,-500.0,0.00041643,30]
[340250350,1728918655219,-500.0,0.00041643,30]
[340250351,1728918655228,-500.0,0.00041643,30]
[340250352,1728918655238,-500.0,0.00041643,30]
[340250353,1728918655247,-518.77,0.00041643,30]
[340250354,1728918655256,-533.36069763,0.00041643,30]
[340250355,1728918655265,-447.45786984,0.00041643,30]
[340250356,1728918655275,-151.0,0.00041643,120]
[340250357,1728918655284,-618.49958143,0.00041643,30]
[340250358,1728918655293,-598.59,0.00041643,30]
[340250359,1728918655303,-500.0,0.00041643,30]
[340250360,1728918655312,-578.23,0.00041643,30]
[340250361,1728918655321,-500.0,0.00041643,30]
[340250362,1728918655331,-500.0,0.00041643,30]
[340250363,1728918655340,-500.0,0.00041643,30]
[340250364,1728918655349,-965.09,0.00041643,30]
[340250365,1728918655358,-500.0,0.00041643,30]
[340250366,1728918655368,-448.65372029,0.00041643,30]
[340250367,1728918655378,-151.0,0.00041643,120]
[340250368,1728918655387,-151.0,0.00041643,120]
[340250369,1728918655397,-1103.2323209,0.00041643,30]
[340250370,1728918655407,-500.0,0.00041643,30]
[340250371,1728918655416,-500.0,0.00041643,30]
[340250372,1728918655427,-500.0,0.00041643,30]
[340250373,1728918655437,-500.0,0.00041643,30]
[340250374,1728918655446,-543.69123347,0.00041643,30]
[340250375,1728918655455,-262.54199151,0.00041643,30]
[340250376,1728918655465,-500.0,0.00041643,30]
[340250377,1728918655474,-500.0,0.00041643,30]
[340250378,1728918655485,-500.0,0.00041643,30]
[340250379,1728918655494,-500.0,0.00041643,30]
[340250380,1728918655503,-500.0,0.00041643,30]
[340250381,1728918655512,-500.0,0.00041643,30]
[340250382,1728918655522,-520.54,0.00041643,30]
[340250383,1728918655531,-500.0,0.00041643,30]
[340250384,1728918655541,-500.0,0.00041643,30]
[340250385,1728918655551,-500.0,0.00041643,30]
[340250386,1728918655560,-527.94,0.00041643,30]
[340250387,1728918655569,-500.0,0.00041643,30]
[340250388,1728918655579,-500.0,0.00041643,30]
[340250389,1728918655589,-500.0,0.00041643,30]
[340250390,1728918655598,-500.0,0.00041643,30]
[340250391,1728918655608,-500.0,0.00041643,30]
[340250392,1728918655617,-500.0,0.00041643,30]
[340250393,1728918655627,-584.39,0.00041643,30]
[340250394,1728918655636,-500.0,0.00041643,30]
[340250395,1728918655646,-500.0,0.00041643,30]
[340250396,1728918655656,-367.14269412,0.00041643,30]
[340250397,1728918655665,-500.0,0.00041643,30]
[340250398,1728918655676,-286.33599417,0.00041643,30]
[340250399,1728918655690,-637.20590119,0.00041643,30]
[340250400,1728918655700,-537.9102317,0.00041643,30]
[340250401,1728918655709,-500.0,0.00041643,30]
[340250402,1728918655718,-500.0,0.00041643,30]
[340250403,1728918655727,-500.0,0.00041643,30]
[340250404,1728918655737,-371.94829073,0.00041643,30]
[340250405,1728918655746,-290.79185773,0.00041643,30]
[340250406,1728918655755,-500.0,0.00041643,30]
[340250407,1728918655765,-500.0,0.00041643,30]
[340250408,1728918655774,-500.0,0.00041643,30]
[340250409,1728918655783,-1432.61,0.00041643,30]
[340250410,1728918655794,-500.0,0.00041643,30]
[340250411,1728918655803,-534.89784947,0.00041643,30]
[340250412,1728918655813,-245.78949874,0.00041643,30]
[340250413,1728918655822,-500.0,0.00041643,30]
[340250414,1728918655832,-567.40265083,0.00041643,30]
[340250415,1728918655841,-586.31998215,0.00041643,30]
[340250416,1728918655850,-500.0,0.00041643,30]
[340250417,1728918655860,-500.0,0.00041643,30]
[340250418,1728918655869,-500.0,0.00041643,30]
[340250419,1728918655878,-525.90011101,0.00041643,30]
[340250420,1728918655887,-500.0,0.00041643,30]
[340250421,1728918655897,-362.08466804,0.00041643,30]
[340250422,1728918655907,-500.0,0.00041643,30]
[340250423,1728918655918,-1034.0,0.00041643,30]
[340250424,1728918655933,-545.82208233,0.00041643,30]
[340250425,1728918655943,-536.35847526,0.00041643,30]
[340250426,1728918655952,-544.68358441,0.00041643,30]
[340250427,1728918655963,-500.0,0.00041643,30]
[340250428,1728918655973,-500.0,0.00041643,30]
[340250429,1728918655983,-500.0,0.00041643,30]
[340250430,1728918655993,-500.0,0.00041643,30]
[340250431,1728918656004,-500.0,0.00041643,30]
[340250432,1728918656016,-585.02,0.00041643,30]
[340250433,1728918656028,-500.0,0.00041643,30]
[340250434,1728918656038,-540.5846175,0.00041643,30]
[340250435,1728918656049,-508.20223636,0.00041643,30]
[340250436,1728918656062,-547.27456724,0.00041643,30]
[340250437,1728918656073,-605.07326753,0.00041643,30]
[340250438,1728918656082,-563.48,0.00041643,30]
[340250439,1728918656091,-1463.67,0.00041643,30]
[340250440,1728918656102,-533.0314041,0.00041643,30]
[340250441,1728918656112,-976.8,0.00041643,30]
[340250442,1728918656122,-500.0,0.00041643,30]
[340250443,1728918656196,-539.57214462,0.00041643,30]
[340250444,1728918656220,-618.84609781,0.00041643,30]
[340250445,1728918656231,-500.0,0.00041643,30]
[340250446,1728918656240,-531.31170041,0.00041643,30]
[340250447,1728918656250,-1452.78,0.00041643,30]
[340250448,1728918656260,-540.92682034,0.00041643,30]
[340250449,1728918656269,-233.42858,0.00041643,120]
[340250450,1728918656279,-500.0,0.00041643,30]
[340250451,1728918656289,-500.0,0.00041643,30]
[340250452,1728918656299,-500.0,0.00041643,30]
[340250453,1728918656308,-500.0,0.00041643,30]
[340250454,1728918656318,-233.42858,0.00041643,120]
[340250455,1728918656328,-460.57864842,0.00041643,30]
[340250456,1728918656338,-500.0,0.00041643,30]
[340250457,1728918656348,-500.0,0.00041643,30]
[340250458,1728918656357,-500.0,0.00041643,30]
[340250459,1728918656367,-500.0,0.00041643,30]
[340250460,1728918656377,-500.0,0.00041643,30]
[340250461,1728918656388,-500.0,0.00041643,30]
[340250462,1728918656397,-500.0,0.00041643,30]
[340250463,1728918656407,-500.0,0.00041643,30]
[340250464,1728918656417,-666.12,0.00041643,30]
[340250465,1728918656431,-500.0,0.00041643,30]
[340250466,1728918656441,-500.0,0.00041643,30]
[340250467,1728918656450,-393.43992443,0.00041643,30]
[340250468,1728918656459,-500.0,0.00041643,30]
[340250469,1728918656469,-173.97946519,0.00041643,30]
[340250470,1728918656478,-500.0,0.00041643,30]
[340250471,1728918656487,-635.51,0.00041643,30]
[340250472,1728918656497,-500.0,0.00041643,30]
[340250473,1728918656506,-532.90031501,0.00041643,30]
[340250474,1728918656515,-500.0,0.00041643,30]
[340250475,1728918656524,-500.0,0.00041643,30]
[340250476,1728918656534,-500.0,0.00041643,30]
[340250477,1728918656543,-500.0,0.00041643,30]
[340250478,1728918656552,-512.18233045,0.00041643,30]
[340250479,1728918656561,-532.72696434,0.00041643,30]
[340250480,1728918656570,-151.0,0.00041643,120]
[340250481,1728918656579,-533.76,0.00041643,30]
[340250482,1728918656588,-500.0,0.00041643,30]
[340250483,1728918656598,-500.0,0.00041643,30]
[340250484,1728918656607,-547.00753972,0.00041643,30]
[340250485,1728918656616,-500.0,0.00041643,30]
[340250486,1728918656626,-243.26590531,0.00041643,30]
[340250487,1728918656635,-500.0,0.00041643,30]
[340250488,1728918656644,-509.79083911,0.00041643,30]
[340250489,1728918656653,-500.0,0.00041643,30]
[340250490,1728918656662,-500.0,0.00041643,30]
[340250491,1728918656674,-544.68,0.00041643,30]
[340250492,1728918656683,-495.07503118,0.00041643,30]
[340250493,1728918656692,-500.0,0.00041643,30]
[340250494,1728918656702,-500.0,0.00041643,30]
[340250495,1728918656711,-500.0,0.00041643,30]
[340250496,1728918656721,-500.0,0.00041643,30]
[340250497,1728918656731,-225.639466,0.00041643,120]
[340250498,1728918656740,-500.0,0.00041643,30]
[340250499,1728918656750,-500.0,0.00041643,30]
[340250500,1728918656759,-225.639466,0.00041643,120]
[340250501,1728918656769,-500.0,0.00041643,30]
[340250502,1728918656778,-260.22997169,0.00041643,30]
[340250503,1728918656787,-500.0,0.00041643,30]
[340250504,1728918656798,-500.0,0.00041643,30]
[340250505,1728918656807,-500.0,0.00041643,30]
[340250506,1728918656817,-500.0,0.00041643,30]
[340250507,1728918656827,-500.0,0.00041643,30]
[340250508,1728918656836,-500.0,0.00041643,30]
[340250509,1728918656846,-757.105824,0.00041643,120]
[340250510,1728918656856,-757.105824,0.00041643,120]
[340250511,1728918656865,-530.94812593,0.00041643,30]
[340250512,1728918656875,-500.0,0.00041643,30]
[340250513,1728918656884,-500.0,0.00041643,30]
[340250514,1728918656894,-252.44206608,0.00041643,30]
[340250515,1728918656903,-500.0,0.00041643,30]
[340250516,1728918656913,-500.0,0.00041643,30]
[340250517,1728918656923,-151.0,0.00041643,120]
[340250518,1728918656933,-176.29579788,0.00041643,30]
[340250519,1728918656943,-157.06662272,0.00041643,30]
[340250520,1728918656952,-500.0,0.00041643,30]
[340250521,1728918656962,-500.0,0.00041643,30]
[340250522,1728918656971,-521.47000882,0.00041643,30]
[340250523,1728918656981,-500.0,0.00041643,30]
[340250524,1728918656991,-507.92,0.00041643,30]
[340250525,1728918657000,-500.0,0.00041643,30]
[340250526,1728918657010,-500.0,0.00041643,30]
[340250527,1728918657020,-500.0,0.00041643,30]
[340250528,1728918657029,-568.62717892,0.00041643,30]
[340250529,1728918657039,-500.0,0.00041643,30]
[340250530,1728918657048,-500.0,0.00041643,30]
[340250531,1728918657059,-570.64,0.00041643,30]
[340250532,1728918657072,-153.67856138,0.00041643,30]
[340250533,1728918657081,-500.0,0.00041643,30]
[340250534,1728918657090,-500.0,0.00041643,30]
[340250535,1728918657101,-500.0,0.00041643,30]
[340250536,1728918657111,-151.0,0.00041643,120]
[340250537,1728918657120,-604.1,0.00041643,30]
[340250538,1728918657131,-500.0,0.00041643,30]
[340250539,1728918657141,-644.09721446,0.00041643,30]
[340250540,1728918657150,-500.0,0.00041643,30]
[340250541,1728918657159,-151.0,0.00041643,120]
[340250542,1728918657173,-708.07,0.00041643,30]
[340250543,1728918657183,-500.0,0.00041643,30]
[340250544,1728918657194,-500.0,0.00041643,30]
[340250545,1728918657204,-500.0,0.00041643,30]
[340250546,1728918657214,-1192.97,0.00041643,30]
[340250547,1728918657223,-500.0,0.00041643,30]
[340250548,1728918657232,-500.0,0.00041643,30]
[340250549,1728918657242,-500.0,0.00041643,30]
[340250550,1728918657251,-509.85,0.00041643,30]
[340250551,1728918657260,-500.0,0.00041643,30]
[340250552,1728918657269,-786.91,0.00041643,30]
[340250553,1728918657278,-500.0,0.00041643,30]
[340250554,1728918657288,-500.0,0.00041643,30]
[340250555,1728918657297,-500.0,0.00041643,30]
[340250556,1728918657306,-574.99325426,0.00041643,30]
[340250557,1728918657315,-500.0,0.00041643,30]
[340250558,1728918657325,-192.07819,0.00041643,120]
[340250559,1728918657334,-373.82875158,0.00041643,30]
[340250560,1728918657344,-180.900687,0.00041643,120]
[340250561,1728918657353,-192.07819,0.00041643,120]
[340250562,1728918657363,-180.900687,0.00041643,120]
[340250563,1728918657372,-500.0,0.00041643,30]
[340250564,1728918657382,-500.0,0.00041643,30]
[340250565,1728918657392,-535.70186384,0.00041643,30]
[340250566,1728918657401,-500.0,0.00041643,30]
[340250567,1728918657411,-180.900687,0.00041643,120]
[340250568,1728918657420,-180.900687,0.00041643,120]
[340250569,1728918657431,-500.0,0.00041643,30]
[340250570,1728918657441,-500.0,0.00041643,30]
[340250571,1728918657450,-545.79478402,0.00041643,30]
[340250572,1728918657460,-742.44,0.00041643,30]
[340250573,1728918657469,-500.0,0.00041643,30]
[340250574,1728918657479,-500.0,0.00041643,30]
[340250575,1728918657488,-561.08285401,0.00041643,30]
[340250576,1728918657498,-500.0,0.00041643,30]
[340250577,1728918657507,-500.0,0.00041643,30]
[340250578,1728918657517,-500.0,0.00041643,30]
[340250579,1728918657526,-500.0,0.00041643,30]
[340250580,1728918657536,-575.95107957,0.00041643,30]
[340250581,1728918657545,-500.0,0.00041643,30]
[340250582,1728918657554,-715.35,0.00041643,30]
[340250583,1728918657563,-500.0,0.00041643,30]
[340250584,1728918657573,-500.0,0.00041643,30]
[340250585,1728918657582,-500.0,0.00041643,30]
[340250586,1728918657591,-512.19,0.00041643,30]
[340250587,1728918657600,-500.0,0.00041643,30]
[340250588,1728918657610,-500.0,0.00041643,30]
[340250589,1728918657620,-542.03,0.00041643,30]
[340250590,1728918657629,-1415.429102,0.00041643,120]
[340250591,1728918657639,-1415.429102,0.00041643,120]
[340250592,1728918657649,-500.0,0.00041643,30]
[340250593,1728918657658,-734.61,0.00041643,30]
[340250594,1728918657667,-1415.429102,0.00041643,120]
[340250595,1728918657677,-1415.429102,0.00041643,120]
[340250596,1728918657686,-589.23222426,0.00041643,30]
[340250597,1728918657696,-500.0,0.00041643,30]
[340250598,1728918657705,-1685.105336,0.00041643,60]
[340250599,1728918657715,-1685.105336,0.00041643,60]
[340250600,1728918657724,-500.0,0.00041643,30]
[340250601,1728918657733,-500.0,0.00041643,30]
[340250602,1728918657743,-1685.105336,0.00041643,60]
[340250603,1728918657752,-500.0,0.00041643,30]
[340250604,1728918657761,-1685.105336,0.00041643,60]
[340250605,1728918657770,-500.0,0.00041643,30]
[340250606,1728918657780,-500.0,0.00041643,30]
[340250607,1728918657789,-522.13706292,0.00041643,30]
[340250608,1728918657798,-528.39,0.00041643,30]
[340250609,1728918657807,-210.95213829,0.00041643,30]
[340250610,1728918657817,-606.71,0.00041643,30]
[340250611,1728918657826,-500.0,0.00041643,30]
[340250612,1728918657835,-579.05586654,0.00041643,30]
[340250613,1728918657844,-500.0,0.00041643,30]
[340250614,1728918657854,-500.0,0.00041643,30]
[340250615,1728918657863,-500.0,0.00041643,30]
[340250616,1728918657872,-500.0,0.00041643,30]
[340250617,1728918657882,-514.3607735,0.00041643,30]
[340250618,1728918657891,-500.0,0.00041643,30]
[340250619,1728918657900,-500.0,0.00041643,30]
[340250620,1728918657910,-500.0,0.00041643,30]
[340250621,1728918657920,-500.0,0.00041643,30]
[340250622,1728918657930,-151.0,0.00041643,120]
[340250623,1728918657939,-151.0,0.00041643,120]
[340250624,1728918657949,-500.0,0.00041643,30]
[340250625,1728918657959,-500.0,0.00041643,30]
[340250626,1728918657968,-500.0,0.00041643,30]
[340250627,1728918657978,-638.98379401,0.00041643,30]
[340250628,1728918657987,-500.0,0.00041643,30]
[340250629,1728918657997,-205.660718,0.00041643,120]
[340250630,1728918658006,-500.0,0.00041643,30]
[340250631,1728918658015,-205.660718,0.00041643,120]
[340250632,1728918658024,-500.0,0.00041643,30]
[340250633,1728918658106,-500.0,0.00041643,30]
[340250634,1728918658116,-684.06,0.00041643,30]
[340250635,1728918658125,-500.0,0.00041643,30]
[340250636,1728918658136,-205.660718,0.00041643,120]
[340250637,1728918658145,-205.660718,0.00041643,120]
[340250638,1728918658154,-500.0,0.00041673,10]
[340250639,1728918658164,-500.0,0.00041673,10]
[340250640,1728918658174,-500.0,0.00041673,10]
[340250641,1728918658183,-251.04713022,0.00041673,10]
[340250642,1728918658192,-500.0,0.00041673,10]
[340250643,1728918658203,-501.24257192,0.00041673,10]
[340250644,1728918658212,-500.52732622,0.00041673,10]
[340250645,1728918658222,-500.41975102,0.00041673,10]
[340250646,1728918658231,-502.25563538,0.00041673,10]
[340250647,1728918658241,-506.61880099,0.00041673,7]
[340250648,1728918658250,-508.92163894,0.00041673,10]
[340250649,1728918658259,-500.0,0.00041673,10]
[340250650,1728918658268,-501.19295201,0.00041673,10]
[340250651,1728918658277,-500.0,0.00041673,10]
[340250652,1728918658286,-156.1,0.00041673,31]
[340250653,1728918658296,-307.62,0.000417,30]
[340250654,1728918658305,-151.0,0.0004189,120]
[340250655,1728918658314,-233.42858,0.00041897,120]
[340250656,1728918658324,-233.428588,0.00041897,120]
[340250657,1728918658334,-225.639466,0.00041897,120]
[340250658,1728918658343,-225.639466,0.00041897,120]
[340250659,1728918658352,-151.0,0.00041897,120]
[340250660,1728918658362,-151.0,0.00041907,120]
[340250661,1728918658371,-151.0,0.00041917,120]
[340250662,1728918658380,-500.0,0.00041917,30]
[340250663,1728918658390,-496.14832027,0.00041917,30]
[340250664,1728918658399,-500.0,0.00041917,30]
[340250665,1728918658408,-500.0,0.00041917,30]
[340250666,1728918658418,-604.97,0.00041917,30]
[340250667,1728918658429,-500.0,0.00041917,30]
[340250668,1728918658438,-376.29672601,0.00041917,30]
[340250669,1728918658447,-500.0,0.00041917,30]
[340250670,1728918658456,-500.0,0.00041917,30]
[340250671,1728918658465,-518.77,0.00041917,30]
[340250672,1728918658475,-151.0,0.00041917,120]
[340250673,1728918658485,-598.59,0.00041917,30]
[340250674,1728918658494,-500.0,0.00041917,30]
[340250675,1728918658503,-578.23,0.00041917,30]
[340250676,1728918658512,-500.0,0.00041917,30]
[340250677,1728918658522,-500.0,0.00041917,30]
[340250678,1728918658531,-500.0,0.00041917,30]
[340250679,1728918658541,-965.09,0.00041917,30]
[340250680,1728918658551,-500.0,0.00041917,30]
[340250681,1728918658560,-151.0,0.00041917,120]
[340250682,1728918658569,-151.0,0.00041917,120]
[340250683,1728918658578,-500.0,0.00041917,30]
[340250684,1728918658587,-500.0,0.00041917,30]
[340250685,1728918658596,-500.0,0.00041917,30]
[340250686,1728918658605,-307.95188593,0.00041917,30]
[340250687,1728918658614,-500.0,0.00041917,30]
[340250688,1728918658623,-500.0,0.00041917,30]
[340250689,1728918658633,-500.0,0.00041917,30]
[340250690,1728918658642,-500.0,0.00041917,30]
[340250691,1728918658653,-500.0,0.00041917,30]
[340250692,1728918658662,-329.97529611,0.00041917,30]
[340250693,1728918658672,-520.54,0.00041917,30]
[340250694,1728918658682,-500.0,0.00041917,30]
[340250695,1728918658691,-500.0,0.00041917,30]
[340250696,1728918658701,-365.60920603,0.00041917,30]
[340250697,1728918658710,-527.94,0.00041917,30]
[340250698,1728918658719,-500.0,0.00041917,30]
[340250699,1728918658728,-500.0,0.00041917,30]
[340250700,1728918658737,-611.88217572,0.00041917,30]
[340250701,1728918658747,-500.0,0.00041917,30]
[340250702,1728918658756,-500.0,0.00041917,30]
[340250703,1728918658766,-500.0,0.00041917,30]
[340250704,1728918658775,-584.39,0.00041917,30]
[340250705,1728918658784,-500.0,0.00041917,30]
[340250706,1728918658793,-500.0,0.00041917,30]
[340250707,1728918658803,-500.0,0.00041917,30]
[340250708,1728918658812,-500.0,0.00041917,30]
[340250709,1728918658822,-500.0,0.00041917,30]
[340250710,1728918658831,-500.0,0.00041917,30]
[340250711,1728918658840,-500.0,0.00041917,30]
[340250712,1728918658851,-500.0,0.00041917,30]
[340250713,1728918658860,-500.0,0.00041917,30]
[340250714,1728918658870,-1432.61,0.00041917,30]
[340250715,1728918658881,-500.0,0.00041917,30]
[340250716,1728918658891,-500.0,0.00041917,30]
[340250717,1728918658900,-500.0,0.00041917,30]
[340250718,1728918658909,-500.0,0.00041917,30]
[340250719,1728918658919,-500.0,0.00041917,30]
[340250720,1728918658930,-500.0,0.00041917,30]
[340250721,1728918658940,-1034.0,0.00041917,30]
[340250722,1728918658949,-239.91880633,0.00041917,30]
[340250723,1728918658961,-624.45699796,0.00041917,30]
[340250724,1728918658973,-500.0,0.00041917,30]
[340250725,1728918658984,-547.20414206,0.00041917,30]
[340250726,1728918658994,-550.48776746,0.00041917,30]
[340250727,1728918659004,-585.02,0.00041917,30]
[340250728,1728918659013,-500.0,0.00041917,30]
[340250729,1728918659023,-563.48,0.00041917,30]
[340250730,1728918659032,-1463.67,0.00041917,30]
[340250731,1728918659042,-976.8,0.00041917,30]
[340250732,1728918659051,-500.0,0.00041917,30]
[340250733,1728918659061,-500.0,0.00041917,30]
[340250734,1728918659074,-1452.78,0.00041917,30]
[340250735,1728918659083,-500.0,0.00041917,30]
[340250736,1728918659092,-500.0,0.00041917,30]
[340250737,1728918659101,-539.60691888,0.00041917,30]
[340250738,1728918659111,-500.0,0.00041917,30]
[340250739,1728918659120,-500.0,0.00041917,30]
[340250740,1728918659129,-500.0,0.00041917,30]
[340250741,1728918659139,-500.0,0.00041917,30]
[340250742,1728918659149,-500.0,0.00041917,30]
[340250743,1728918659159,-500.0,0.00041917,30]
[340250744,1728918659168,-500.0,0.00041917,30]
[340250745,1728918659179,-500.0,0.00041917,30]
[340250746,1728918659189,-500.0,0.00041917,30]
[340250747,1728918659198,-666.12,0.00041917,30]
[340250748,1728918659208,-500.0,0.00041917,30]
[340250749,1728918659217,-500.0,0.00041917,30]
[340250750,1728918659227,-500.0,0.00041917,30]
[340250751,1728918659236,-500.0,0.00041917,30]
[340250752,1728918659246,-635.51,0.00041917,30]
[340250753,1728918659256,-500.0,0.00041917,30]
[340250754,1728918659266,-500.0,0.00041917,30]
[340250755,1728918659276,-500.0,0.00041917,30]
[340250756,1728918659285,-500.0,0.00041917,30]
[340250757,1728918659295,-500.0,0.00041917,30]
[340250758,1728918659304,-533.76,0.00041917,30]
[340250759,1728918659313,-216.44089296,0.00041917,30]
[340250760,1728918659325,-500.0,0.00041917,30]
[340250761,1728918659334,-500.0,0.00041917,30]
[340250762,1728918659343,-298.6397317,0.00041917,30]
[340250763,1728918659353,-500.0,0.00041917,30]
[340250764,1728918659363,-500.0,0.00041917,30]
[340250765,1728918659372,-544.68,0.00041917,30]
[340250766,1728918659382,-500.0,0.00041917,30]
[340250767,1728918659392,-500.0,0.00041917,30]
[340250768,1728918659401,-500.0,0.00041917,30]
[340250769,1728918659411,-500.0,0.00041917,30]
[340250770,1728918659421,-225.639466,0.00041917,120]
[340250771,1728918659431,-500.0,0.00041917,30]
[340250772,1728918659441,-500.0,0.00041917,30]
[340250773,1728918659450,-225.639466,0.00041917,120]
[340250774,1728918659460,-478.2204658,0.00041917,30]
[340250775,1728918659469,-507.91689359,0.00041917,30]
[340250776,1728918659478,-500.0,0.00041917,30]
[340250777,1728918659487,-500.0,0.00041917,30]
[340250778,1728918659497,-500.0,0.00041917,30]
[340250779,1728918659507,-500.0,0.00041917,30]
[340250780,1728918659517,-500.0,0.00041917,30]
[340250781,1728918659528,-757.105824,0.00041917,120]
[340250782,1728918659538,-757.105815,0.00041917,120]
[340250783,1728918659549,-500.0,0.00041917,30]
[340250784,1728918659561,-566.67080846,0.00041917,30]
[340250785,1728918659573,-500.0,0.00041917,30]
[340250786,1728918659583,-152.74713439,0.00041917,30]
[340250787,1728918659592,-151.0,0.00041917,120]
[340250788,1728918659602,-500.0,0.00041917,30]
[340250789,1728918659612,-500.0,0.00041917,30]
[340250790,1728918659622,-507.92,0.00041917,30]
[340250791,1728918659631,-500.0,0.00041917,30]
[340250792,1728918659641,-547.00019513,0.00041917,30]
[340250793,1728918659650,-434.29657868,0.00041917,30]
[340250794,1728918659660,-193.77504591,0.00041917,30]
[340250795,1728918659670,-500.0,0.00041917,30]
[340250796,1728918659688,-570.64,0.00041917,30]